[Event "Titled Tuesday Blitz June 20 Early 2023"]
[White "Sariego Figueredo, Wilfredo"]
[Black "Reprintsev, Alexander"]
[WhiteFideId "3500080"]
[BlackFideId "14100541"]
[WhiteElo "2309"]
[BlackElo "2229"]
[Result "1/2-1/2"]
[Round "9"]
[TimeControl "180+2"]
[Date "2023.06.20"]
[WhiteClock "0:00:15"]
[BlackClock "0:00:19"]
[Board "118"]

1. d4 {[%clk 0:02:55]}  d5 {[%clk 0:02:56]} 2. Bf4 {[%clk 0:02:54]}  Nf6 {[%clk 0:02:55]} 3. e3 {[%clk 0:02:54]}  c5 {[%clk 0:02:54]} 4. c3 {[%clk 0:02:54]}  Qb6 {[%clk 0:02:54]} 5. Qc2 {[%clk 0:02:49]}  g6 {[%clk 0:02:51]} 6. Bd3 {[%clk 0:02:43]}  c4 {[%clk 0:02:34]} 7. Be2 {[%clk 0:02:42]}  Bf5 {[%clk 0:02:33]} 8. Qc1 {[%clk 0:02:42]}  Nc6 {[%clk 0:02:33]} 9. Nd2 {[%clk 0:02:43]}  Bg7 {[%clk 0:02:33]} 10. Ngf3 {[%clk 0:02:43]}  O-O {[%clk 0:02:33]} 11. O-O {[%clk 0:02:36]}  h6 {[%clk 0:02:18]} 12. h3 {[%clk 0:02:29]}  Nd7 {[%clk 0:02:01]} 13. b3 {[%clk 0:02:02]}  cxb3 {[%clk 0:01:47]} 14. axb3 {[%clk 0:02:03]}  e5 {[%clk 0:01:46]} 15. Nxe5 {[%clk 0:01:55]}  Ndxe5 {[%clk 0:01:46]} 16. Bxe5 {[%clk 0:01:56]}  Nxe5 {[%clk 0:01:45]} 17. dxe5 {[%clk 0:01:56]}  Bxe5 {[%clk 0:01:45]} 18. Nf3 {[%clk 0:01:56]}  Bg7 {[%clk 0:01:43]} 19. Nd4 {[%clk 0:01:49]}  Bd7 {[%clk 0:01:35]} 20. b4 {[%clk 0:01:44]}  a6 {[%clk 0:01:18]} 21. Rd1 {[%clk 0:01:31]}  Rac8 {[%clk 0:01:15]} 22. Qa3 {[%clk 0:01:26]}  Rfd8 {[%clk 0:01:13]} 23. Rac1 {[%clk 0:01:20]}  Kh7 {[%clk 0:01:11]} 24. Bf3 {[%clk 0:01:17]}  Be6 {[%clk 0:01:10]} 25. Qa5 {[%clk 0:00:51]}  Qxa5 {[%clk 0:01:04]} 26. bxa5 {[%clk 0:00:52]}  Rc5 {[%clk 0:01:03]} 27. Rb1 {[%clk 0:00:52]}  Rd7 {[%clk 0:01:02]} 28. Rb6 {[%clk 0:00:43]}  Bxd4 {[%clk 0:00:55]} 29. cxd4 {[%clk 0:00:42]}  Rxa5 {[%clk 0:00:55]} 30. Rdb1 {[%clk 0:00:42]}  Kg7 {[%clk 0:00:49]} 31. Rxb7 {[%clk 0:00:42]}  Rxb7 {[%clk 0:00:49]} 32. Rxb7 {[%clk 0:00:43]}  Ra1+ {[%clk 0:00:48]} 33. Kh2 {[%clk 0:00:43]}  Kf6 {[%clk 0:00:49]} 34. Ra7 {[%clk 0:00:42]}  Ra5 {[%clk 0:00:44]} 35. Kg3 {[%clk 0:00:39]}  Bf5 {[%clk 0:00:44]} 36. Be2 {[%clk 0:00:39]}  Bc8 {[%clk 0:00:37]} 37. Ra8 {[%clk 0:00:39]}  Bb7 {[%clk 0:00:37]} 38. Ra7 {[%clk 0:00:39]}  Bc8 {[%clk 0:00:37]} 39. Rc7 {[%clk 0:00:39]}  Be6 {[%clk 0:00:36]} 40. Rc6 {[%clk 0:00:38]}  Ra2 {[%clk 0:00:35]} 41. Bxa6 {[%clk 0:00:35]}  g5 {[%clk 0:00:34]} 42. Bc8 {[%clk 0:00:32]}  h5 {[%clk 0:00:33]} 43. Bxe6 {[%clk 0:00:29]}  fxe6 {[%clk 0:00:33]} 44. Rc8 {[%clk 0:00:26]}  Kf5 {[%clk 0:00:31]} 45. Rf8+ {[%clk 0:00:25]}  Kg6 {[%clk 0:00:31]} 46. Kf3 {[%clk 0:00:21]}  Rb2 {[%clk 0:00:29]} 47. g3 {[%clk 0:00:20]}  Ra2 {[%clk 0:00:28]} 48. Rg8+ {[%clk 0:00:18]}  Kf6 {[%clk 0:00:27]} 49. Rh8 {[%clk 0:00:17]}  Kg6 {[%clk 0:00:27]} 50. g4 {[%clk 0:00:17]}  h4 {[%clk 0:00:27]} 51. Rg8+ {[%clk 0:00:17]}  Kf6 {[%clk 0:00:26]} 52. Rf8+ {[%clk 0:00:17]}  Kg6 {[%clk 0:00:26]} 53. Re8 {[%clk 0:00:17]}  Kf7 {[%clk 0:00:24]} 54. Rb8 {[%clk 0:00:17]}  Ra1 {[%clk 0:00:23]} 55. Kg2 {[%clk 0:00:16]}  Kf6 {[%clk 0:00:23]} 56. Rb2 {[%clk 0:00:16]}  Ra3 {[%clk 0:00:21]} 57. Rd2 {[%clk 0:00:15]}  Rb3 {[%clk 0:00:21]} 58. Kf1 {[%clk 0:00:15]}  Ra3 {[%clk 0:00:21]} 59. Kg2 {[%clk 0:00:16]}  Rb3 {[%clk 0:00:21]} 60. Re2 {[%clk 0:00:15]}  Ra3 {[%clk 0:00:21]} 61. e4 {[%clk 0:00:16]}  Rd3 {[%clk 0:00:19]} 62. exd5 {[%clk 0:00:15]}  exd5 {[%clk 0:00:19]} 63. Re5 {[%clk 0:00:15]}  Rxd4 {[%clk 0:00:19]} 64. Rf5+ {[%clk 0:00:16]}  Kg6 {[%clk 0:00:18]} 65. Re5 {[%clk 0:00:16]}  Rd3 {[%clk 0:00:19]} 66. Re6+ {[%clk 0:00:16]}  Kf7 {[%clk 0:00:19]} 67. Re5 {[%clk 0:00:16]}  Kf6 {[%clk 0:00:19]} 68. Rf5+ {[%clk 0:00:17]}  Kg6 {[%clk 0:00:20]} 69. Re5 {[%clk 0:00:17]}  Rd2 {[%clk 0:00:19]} 70. Kf3 {[%clk 0:00:17]}  Rd1 {[%clk 0:00:18]} 71. Re6+ {[%clk 0:00:17]}  Kf7 {[%clk 0:00:18]} 72. Re5 {[%clk 0:00:17]}  Kf6 {[%clk 0:00:18]} 73. Rf5+ {[%clk 0:00:17]}  Kg6 {[%clk 0:00:19]} 74. Re5 {[%clk 0:00:18]}  Rd3+ {[%clk 0:00:18]} 75. Kg2 {[%clk 0:00:18]}  Rd1 {[%clk 0:00:18]} 76. Re6+ {[%clk 0:00:18]}  Kf7 {[%clk 0:00:18]} 77. Re5 {[%clk 0:00:17]}  Kf6 {[%clk 0:00:19]} 78. Rf5+ {[%clk 0:00:17]}  Kg6 {[%clk 0:00:19]} 79. Re5 {[%clk 0:00:18]}  Rd2 {[%clk 0:00:19]} 80. Re6+ {[%clk 0:00:17]}  Kf7 {[%clk 0:00:19]} 81. Rd6 {[%clk 0:00:17]}  Rd3 {[%clk 0:00:18]} 82. Kh2 {[%clk 0:00:15]}  Kg7 {[%clk 0:00:18]} 83. Kg2 {[%clk 0:00:15]}  Kf7 {[%clk 0:00:18]} 84. Kh2 {[%clk 0:00:16]}  Kg7 {[%clk 0:00:18]} 85. Kg2 {[%clk 0:00:15]}  Kf7 {[%clk 0:00:19]} 1/2-1/2


[Site "https://www.chess.com"]

[Event "Titled Tuesday Blitz June 20 Early 2023"]
[White "Ilkhomi, Jaloliddin"]
[Black "Dwilewicz, Katarzyna"]
[WhiteFideId "14700948"]
[BlackFideId "1148486"]
[WhiteElo "2045"]
[BlackElo "2098"]
[Result "1-0"]
[Round "9"]
[TimeControl "180+2"]
[Date "2023.06.20"]
[WhiteClock "0:01:42"]
[BlackClock "0:00:00"]
[Board "121"]

1. Nf3 {[%clk 0:02:55]}  b6 {[%clk 0:02:59]} 2. d4 {[%clk 0:02:56]}  Bb7 {[%clk 0:02:59]} 3. Bf4 {[%clk 0:02:55]}  Nf6 {[%clk 0:02:58]} 4. Nbd2 {[%clk 0:02:56]}  g6 {[%clk 0:02:57]} 5. c3 {[%clk 0:02:56]}  Bg7 {[%clk 0:02:58]} 6. e3 {[%clk 0:02:55]}  Nh5 {[%clk 0:02:56]} 7. Bg5 {[%clk 0:02:55]}  h6 {[%clk 0:02:56]} 8. Bh4 {[%clk 0:02:55]}  g5 {[%clk 0:02:56]} 9. Bg3 {[%clk 0:02:56]}  Nxg3 {[%clk 0:02:56]} 10. hxg3 {[%clk 0:02:57]}  d6 {[%clk 0:02:55]} 11. Bd3 {[%clk 0:02:57]}  Nd7 {[%clk 0:02:53]} 12. Qe2 {[%clk 0:02:58]}  e5 {[%clk 0:02:53]} 13. O-O-O {[%clk 0:02:56]}  Qe7 {[%clk 0:02:50]} 14. Ba6 {[%clk 0:02:54]}  O-O-O {[%clk 0:02:50]} 15. Bxb7+ {[%clk 0:02:54]}  Kxb7 {[%clk 0:02:51]} 16. e4 {[%clk 0:02:52]}  exd4 {[%clk 0:02:47]} 17. cxd4 {[%clk 0:02:53]}  c5 {[%clk 0:02:40]} 18. dxc5 {[%clk 0:02:51]}  dxc5 {[%clk 0:02:34]} 19. Nc4 {[%clk 0:02:48]}  Nb8 {[%clk 0:02:18]} 20. e5 {[%clk 0:02:46]}  Rhe8 {[%clk 0:02:11]} 21. Qe4+ {[%clk 0:02:38]}  Nc6 {[%clk 0:02:05]} 22. Rhe1 {[%clk 0:02:38]}  Rxd1+ {[%clk 0:01:40]} 23. Rxd1 {[%clk 0:02:36]}  Rd8 {[%clk 0:01:37]} 24. Nd6+ {[%clk 0:02:34]}  Kc7 {[%clk 0:01:28]} 25. Nb5+ {[%clk 0:02:32]}  Kb7 {[%clk 0:01:28]} 26. Rxd8 {[%clk 0:02:29]}  Qxd8 {[%clk 0:01:26]} 27. Nxa7 {[%clk 0:02:26]}  Kxa7 {[%clk 0:01:12]} 28. Qxc6 {[%clk 0:02:26]}  Qe7 {[%clk 0:01:12]} 29. Qd5 {[%clk 0:02:22]}  g4 {[%clk 0:01:03]} 30. Nd2 {[%clk 0:02:22]}  Bxe5 {[%clk 0:00:59]} 31. Nc4 {[%clk 0:02:21]}  Bd4 {[%clk 0:00:51]} 32. Kc2 {[%clk 0:02:04]}  Qe6 {[%clk 0:00:31]} 33. Qxe6 {[%clk 0:01:50]}  fxe6 {[%clk 0:00:32]} 34. f3 {[%clk 0:01:50]}  h5 {[%clk 0:00:29]} 35. Kd3 {[%clk 0:01:45]}  Bf2 {[%clk 0:00:18]} 36. fxg4 {[%clk 0:01:45]}  hxg4 {[%clk 0:00:18]} 37. Ne5 {[%clk 0:01:45]}  Bxg3 {[%clk 0:00:16]} 38. Nxg4 {[%clk 0:01:46]}  Kb7 {[%clk 0:00:15]} 39. Nf6 {[%clk 0:01:46]}  Kc6 {[%clk 0:00:14]} 40. a4 {[%clk 0:01:47]}  Be5 {[%clk 0:00:11]} 41. Ne4 {[%clk 0:01:44]}  Bxb2 {[%clk 0:00:11]} 42. Kc4 {[%clk 0:01:44]}  Be5 {[%clk 0:00:08]} 43. g4 {[%clk 0:01:44]}  Bg7 {[%clk 0:00:05]} 44. g5 {[%clk 0:01:45]}  Be5 {[%clk 0:00:05]} 45. g6 {[%clk 0:01:46]}  Bg7 {[%clk 0:00:06]} 46. Ng5 {[%clk 0:01:46]}  Kd6 {[%clk 0:00:06]} 47. Kb5 {[%clk 0:01:46]}  Ke5 {[%clk 0:00:04]} 48. Kxb6 {[%clk 0:01:45]}  c4 {[%clk 0:00:04]} 49. Nf3+ {[%clk 0:01:43]}  Kf4 {[%clk 0:00:03]} 50. Ne1 {[%clk 0:01:44]}  c3 {[%clk 0:00:03]} 51. a5 {[%clk 0:01:44]}  Kg5 {[%clk 0:00:01]} 52. Kc5 {[%clk 0:01:43]}  Kxg6 {[%clk 0:00:01]} 53. a6 {[%clk 0:01:44]}  Bh6 {[%clk 0:00:01]} 54. Kd4 {[%clk 0:01:43]}  Bg7+ {[%clk 0:00:00]} 55. Kd3 {[%clk 0:01:42]} 1-0


[Site "https://www.chess.com"]

[Event "Titled Tuesday Blitz June 20 Early 2023"]
[White "Karamsetty, Jeevan"]
[Black "Shapiro, Daniel"]
[WhiteFideId "2025337"]
[BlackFideId "2001780"]
[WhiteElo "2131"]
[BlackElo "2341"]
[Result "1-0"]
[Round "9"]
[TimeControl "180+2"]
[Date "2023.06.20"]
[WhiteClock "0:01:56"]
[BlackClock "0:00:00"]
[Board "123"]

1. e4 {[%clk 0:03:00]}  e5 {[%clk 0:02:59]} 2. Nf3 {[%clk 0:03:01]}  Nc6 {[%clk 0:02:59]} 3. Bb5 {[%clk 0:03:01]}  a6 {[%clk 0:02:58]} 4. Ba4 {[%clk 0:03:02]}  Nf6 {[%clk 0:02:58]} 5. O-O {[%clk 0:03:02]}  Be7 {[%clk 0:02:58]} 6. Re1 {[%clk 0:03:00]}  b5 {[%clk 0:02:58]} 7. Bb3 {[%clk 0:03:00]}  d6 {[%clk 0:02:58]} 8. c3 {[%clk 0:03:01]}  O-O {[%clk 0:02:58]} 9. d4 {[%clk 0:02:59]}  Bg4 {[%clk 0:02:56]} 10. d5 {[%clk 0:02:58]}  Na5 {[%clk 0:02:56]} 11. Bc2 {[%clk 0:02:59]}  c6 {[%clk 0:02:57]} 12. h3 {[%clk 0:02:59]}  Bc8 {[%clk 0:02:45]} 13. dxc6 {[%clk 0:02:55]}  Qc7 {[%clk 0:02:44]} 14. Nbd2 {[%clk 0:02:55]}  Qxc6 {[%clk 0:02:43]} 15. Nf1 {[%clk 0:02:55]}  Rd8 {[%clk 0:02:36]} 16. Ne3 {[%clk 0:02:52]}  h6 {[%clk 0:02:30]} 17. Nd5 {[%clk 0:02:52]}  Nxd5 {[%clk 0:01:56]} 18. exd5 {[%clk 0:02:53]}  Qd7 {[%clk 0:01:44]} 19. Be3 {[%clk 0:02:48]}  Nb7 {[%clk 0:01:32]} 20. Bb6 {[%clk 0:02:46]}  Rf8 {[%clk 0:01:30]} 21. a4 {[%clk 0:02:43]}  Rb8 {[%clk 0:01:11]} 22. b4 {[%clk 0:02:36]}  f5 {[%clk 0:01:06]} 23. axb5 {[%clk 0:02:29]}  axb5 {[%clk 0:01:04]} 24. Ra7 {[%clk 0:02:22]}  Bd8 {[%clk 0:00:53]} 25. Bxd8 {[%clk 0:02:16]}  Qxd8 {[%clk 0:00:50]} 26. Qa1 {[%clk 0:02:14]}  Qf6 {[%clk 0:00:43]} 27. Nd2 {[%clk 0:02:06]}  e4 {[%clk 0:00:41]} 28. Nb3 {[%clk 0:02:05]}  Qe5 {[%clk 0:00:34]} 29. Nd4 {[%clk 0:02:04]}  Nd8 {[%clk 0:00:26]} 30. Qa5 {[%clk 0:01:56]}  Qxd5 {[%clk 0:00:00]} 31. Bb3 {[%clk 0:01:56]} 1-0


[Site "https://www.chess.com"]

[Event "Titled Tuesday Blitz June 20 Early 2023"]
[White "Bilan, Danila"]
[Black "Ovezdurdyyeva, Jemal"]
[WhiteFideId "24161918"]
[BlackFideId "14001888"]
[WhiteElo "2146"]
[BlackElo "2069"]
[Result "0-1"]
[Round "9"]
[TimeControl "180+2"]
[Date "2023.06.20"]
[WhiteClock "0:00:03"]
[BlackClock "0:00:20"]
[Board "124"]

1. d4 {[%clk 0:02:54]}  d6 {[%clk 0:02:57]} 2. Nf3 {[%clk 0:02:54]}  Nf6 {[%clk 0:02:57]} 3. g3 {[%clk 0:02:53]}  g6 {[%clk 0:02:57]} 4. Bg2 {[%clk 0:02:53]}  Bg7 {[%clk 0:02:57]} 5. O-O {[%clk 0:02:53]}  O-O {[%clk 0:02:57]} 6. c4 {[%clk 0:02:54]}  c6 {[%clk 0:02:57]} 7. Nc3 {[%clk 0:02:54]}  Nbd7 {[%clk 0:02:56]} 8. Qc2 {[%clk 0:02:53]}  e5 {[%clk 0:02:55]} 9. Rd1 {[%clk 0:02:49]}  Qe7 {[%clk 0:02:53]} 10. dxe5 {[%clk 0:02:42]}  dxe5 {[%clk 0:02:52]} 11. e4 {[%clk 0:02:43]}  Nc5 {[%clk 0:02:49]} 12. Be3 {[%clk 0:02:42]}  Bg4 {[%clk 0:02:39]} 13. h3 {[%clk 0:02:42]}  Bxf3 {[%clk 0:02:38]} 14. Bxf3 {[%clk 0:02:43]}  Ne6 {[%clk 0:02:37]} 15. Ne2 {[%clk 0:02:26]}  Nd7 {[%clk 0:02:30]} 16. Bg4 {[%clk 0:02:14]}  h5 {[%clk 0:02:08]} 17. Bxe6 {[%clk 0:02:01]}  Qxe6 {[%clk 0:02:07]} 18. Kg2 {[%clk 0:01:59]}  f5 {[%clk 0:01:57]} 19. c5 {[%clk 0:01:12]}  fxe4 {[%clk 0:01:47]} 20. Qxe4 {[%clk 0:00:44]}  Qf7 {[%clk 0:01:46]} 21. Rd6 {[%clk 0:00:34]}  Nf6 {[%clk 0:01:46]} 22. Qd3 {[%clk 0:00:25]}  Nd5 {[%clk 0:01:45]} 23. Nc3 {[%clk 0:00:19]}  Qf3+ {[%clk 0:01:34]} 24. Kg1 {[%clk 0:00:16]}  Nxc3 {[%clk 0:01:21]} 25. bxc3 {[%clk 0:00:15]}  e4 {[%clk 0:01:21]} 26. Qc4+ {[%clk 0:00:14]}  Kh7 {[%clk 0:01:21]} 27. Rd7 {[%clk 0:00:09]}  Rad8 {[%clk 0:01:18]} 28. Rd6 {[%clk 0:00:05]}  h4 {[%clk 0:01:13]} 29. g4 {[%clk 0:00:05]}  Qxh3 {[%clk 0:01:12]} 30. Qe6 {[%clk 0:00:05]}  Rf6 {[%clk 0:01:10]} 31. Qxe4 {[%clk 0:00:03]}  Rdxd6 {[%clk 0:01:05]} 32. cxd6 {[%clk 0:00:04]}  Rxd6 {[%clk 0:01:05]} 33. Rc1 {[%clk 0:00:03]}  Rd5 {[%clk 0:01:03]} 34. c4 {[%clk 0:00:03]}  Re5 {[%clk 0:01:00]} 35. Qf4 {[%clk 0:00:03]}  g5 {[%clk 0:00:56]} 36. Qh2 {[%clk 0:00:02]}  Qxg4+ {[%clk 0:00:56]} 37. Qg2 {[%clk 0:00:02]}  Qxg2+ {[%clk 0:00:51]} 38. Kxg2 {[%clk 0:00:03]}  Kg6 {[%clk 0:00:48]} 39. Rd1 {[%clk 0:00:03]}  g4 {[%clk 0:00:45]} 40. Rd7 {[%clk 0:00:03]}  b5 {[%clk 0:00:32]} 41. Rxa7 {[%clk 0:00:01]}  bxc4 {[%clk 0:00:28]} 42. Rc7 {[%clk 0:00:02]}  Re6 {[%clk 0:00:28]} 43. a4 {[%clk 0:00:02]}  h3+ {[%clk 0:00:28]} 44. Kg1 {[%clk 0:00:01]}  Rd6 {[%clk 0:00:24]} 45. a5 {[%clk 0:00:02]}  Rd1+ {[%clk 0:00:24]} 46. Kh2 {[%clk 0:00:02]}  Be5+ {[%clk 0:00:24]} 47. f4 {[%clk 0:00:03]}  Bxc7 {[%clk 0:00:21]} 48. Kg3 {[%clk 0:00:03]}  Ra1 {[%clk 0:00:20]} 49. Kh4 {[%clk 0:00:03]}  Rxa5 {[%clk 0:00:20]} 0-1


[Site "https://www.chess.com"]

[Event "Titled Tuesday Blitz June 20 Early 2023"]
[White "Vifleemskaia, Svetlana"]
[Black "Zheenbekov, Nurgazy"]
[WhiteFideId "4129490"]
[BlackFideId "13800485"]
[WhiteElo "1930"]
[BlackElo "1975"]
[Result "0-1"]
[Round "9"]
[TimeControl "180+2"]
[Date "2023.06.20"]
[WhiteClock "0:00:00"]
[BlackClock "0:00:29"]
[Board "127"]

1. d4 {[%clk 0:03:00]}  Nf6 {[%clk 0:02:58]} 2. c4 {[%clk 0:03:00]}  c5 {[%clk 0:02:58]} 3. d5 {[%clk 0:03:00]}  e6 {[%clk 0:02:55]} 4. Nc3 {[%clk 0:02:58]}  exd5 {[%clk 0:02:54]} 5. cxd5 {[%clk 0:02:59]}  d6 {[%clk 0:02:53]} 6. e4 {[%clk 0:03:00]}  g6 {[%clk 0:02:53]} 7. Nge2 {[%clk 0:03:00]}  Bg7 {[%clk 0:02:53]} 8. Ng3 {[%clk 0:03:01]}  O-O {[%clk 0:02:53]} 9. Be2 {[%clk 0:03:00]}  a6 {[%clk 0:02:54]} 10. a4 {[%clk 0:03:00]}  Nbd7 {[%clk 0:02:52]} 11. O-O {[%clk 0:03:00]}  Rb8 {[%clk 0:02:52]} 12. Bf4 {[%clk 0:02:59]}  Qc7 {[%clk 0:02:50]} 13. Rc1 {[%clk 0:02:57]}  Re8 {[%clk 0:02:44]} 14. b4 {[%clk 0:02:56]}  b6 {[%clk 0:02:42]} 15. b5 {[%clk 0:02:53]}  a5 {[%clk 0:02:38]} 16. Qd2 {[%clk 0:02:49]}  Ne5 {[%clk 0:02:36]} 17. Bh6 {[%clk 0:02:45]}  Bh8 {[%clk 0:02:34]} 18. h3 {[%clk 0:02:32]}  c4 {[%clk 0:02:18]} 19. Be3 {[%clk 0:02:27]}  Ned7 {[%clk 0:02:16]} 20. Bd4 {[%clk 0:02:09]}  Nc5 {[%clk 0:02:14]} 21. Bxc4 {[%clk 0:01:43]}  Qe7 {[%clk 0:01:42]} 22. Rfe1 {[%clk 0:01:33]}  Nfd7 {[%clk 0:01:40]} 23. Bxh8 {[%clk 0:01:31]}  Kxh8 {[%clk 0:01:39]} 24. Qd4+ {[%clk 0:01:31]}  Qe5 {[%clk 0:01:38]} 25. Rcd1 {[%clk 0:01:24]}  Kg8 {[%clk 0:01:31]} 26. Bf1 {[%clk 0:01:18]}  h5 {[%clk 0:01:30]} 27. Qxe5 {[%clk 0:01:13]}  Nxe5 {[%clk 0:01:17]} 28. f4 {[%clk 0:01:13]}  Ned7 {[%clk 0:01:15]} 29. Be2 {[%clk 0:00:58]}  h4 {[%clk 0:01:12]} 30. Nf1 {[%clk 0:00:53]}  Nxe4 {[%clk 0:01:11]} 31. Bd3 {[%clk 0:00:32]}  f5 {[%clk 0:01:06]} 32. Bxe4 {[%clk 0:00:30]}  fxe4 {[%clk 0:01:05]} 33. Nxe4 {[%clk 0:00:30]}  Kf8 {[%clk 0:01:05]} 34. Nxd6 {[%clk 0:00:29]}  Rxe1 {[%clk 0:01:04]} 35. Rxe1 {[%clk 0:00:30]}  Nc5 {[%clk 0:01:05]} 36. Re8+ {[%clk 0:00:27]}  Kg7 {[%clk 0:01:05]} 37. Rxc8 {[%clk 0:00:28]}  Rxc8 {[%clk 0:01:04]} 38. Nxc8 {[%clk 0:00:29]}  Nxa4 {[%clk 0:01:04]} 39. Ne3 {[%clk 0:00:28]}  Kf6 {[%clk 0:01:03]} 40. Kf2 {[%clk 0:00:25]}  Nc3 {[%clk 0:00:59]} 41. Ng4+ {[%clk 0:00:20]}  Kf5 {[%clk 0:00:54]} 42. Nxb6 {[%clk 0:00:21]}  Nxb5 {[%clk 0:00:53]} 43. Ke3 {[%clk 0:00:19]}  Nc3 {[%clk 0:00:47]} 44. Kd3 {[%clk 0:00:16]}  Nb5 {[%clk 0:00:46]} 45. Ke3 {[%clk 0:00:13]}  Nd6 {[%clk 0:00:44]} 46. Ne5 {[%clk 0:00:10]}  g5 {[%clk 0:00:40]} 47. Nd3 {[%clk 0:00:08]}  g4 {[%clk 0:00:39]} 48. hxg4+ {[%clk 0:00:08]}  Kxg4 {[%clk 0:00:39]} 49. Ne5+ {[%clk 0:00:08]}  Kg3 {[%clk 0:00:39]} 50. Nec4 {[%clk 0:00:09]}  Nb7 {[%clk 0:00:31]} 51. d6 {[%clk 0:00:08]}  Kxg2 {[%clk 0:00:31]} 52. Nd2 {[%clk 0:00:03]}  h3 {[%clk 0:00:30]} 53. Nf3 {[%clk 0:00:00]}  Nxd6 {[%clk 0:00:29]} 0-1


[Site "https://www.chess.com"]

[Event "Titled Tuesday Blitz June 20 Early 2023"]
[White "Brueckner, Thomas"]
[Black "Luna Javier, Edgar Froylan"]
[WhiteFideId "4600452"]
[BlackFideId "5120101"]
[WhiteElo "2319"]
[BlackElo "2091"]
[Result "1-0"]
[Round "9"]
[TimeControl "180+2"]
[Date "2023.06.20"]
[WhiteClock "0:00:16"]
[BlackClock "0:00:00"]
[Board "128"]

1. d4 {[%clk 0:03:00]}  Nf6 {[%clk 0:02:59]} 2. c4 {[%clk 0:03:01]}  g6 {[%clk 0:02:59]} 3. Nc3 {[%clk 0:03:01]}  d5 {[%clk 0:02:59]} 4. cxd5 {[%clk 0:02:58]}  Nxd5 {[%clk 0:03:00]} 5. Bd2 {[%clk 0:02:58]}  Bg7 {[%clk 0:03:00]} 6. e4 {[%clk 0:02:58]}  Nb6 {[%clk 0:03:00]} 7. Be3 {[%clk 0:02:38]}  O-O {[%clk 0:03:00]} 8. h3 {[%clk 0:02:26]}  Nc6 {[%clk 0:02:56]} 9. Nf3 {[%clk 0:02:25]}  f5 {[%clk 0:02:46]} 10. exf5 {[%clk 0:02:25]}  Bxf5 {[%clk 0:02:44]} 11. Be2 {[%clk 0:02:21]}  e5 {[%clk 0:02:38]} 12. Qb3+ {[%clk 0:01:50]}  Kh8 {[%clk 0:02:33]} 13. dxe5 {[%clk 0:01:50]}  Nxe5 {[%clk 0:02:26]} 14. Nxe5 {[%clk 0:01:48]}  Bxe5 {[%clk 0:02:27]} 15. Rd1 {[%clk 0:01:45]}  Qh4 {[%clk 0:02:18]} 16. g3 {[%clk 0:01:44]}  Qf6 {[%clk 0:02:10]} 17. h4 {[%clk 0:01:43]}  Rae8 {[%clk 0:01:50]} 18. Bc5 {[%clk 0:01:22]}  Rf7 {[%clk 0:00:47]} 19. O-O {[%clk 0:01:17]}  h6 {[%clk 0:00:27]} 20. a4 {[%clk 0:01:06]}  Kh7 {[%clk 0:00:26]} 21. Bd3 {[%clk 0:00:53]}  Bh3 {[%clk 0:00:20]} 22. a5 {[%clk 0:00:52]}  Nd7 {[%clk 0:00:19]} 23. Ne4 {[%clk 0:00:46]}  Qe6 {[%clk 0:00:12]} 24. Bc4 {[%clk 0:00:45]}  Qg4 {[%clk 0:00:08]} 25. Bxf7 {[%clk 0:00:42]}  Qxe4 {[%clk 0:00:08]} 26. Bd5 {[%clk 0:00:35]}  Nxc5 {[%clk 0:00:07]} 27. Qb5 {[%clk 0:00:19]}  Qg4 {[%clk 0:00:06]} 28. Qxe8 {[%clk 0:00:17]}  Qxg3+ {[%clk 0:00:00]} 29. fxg3 {[%clk 0:00:16]} 1-0


[Site "https://www.chess.com"]

[Event "Titled Tuesday Blitz June 20 Early 2023"]
[White "Kohler, Aran"]
[Black "Gomes, Luiz Alexandre de Souza"]
[WhiteFideId "1002856"]
[BlackFideId "2102790"]
[WhiteElo "2304"]
[BlackElo "2418"]
[Result "1/2-1/2"]
[Round "9"]
[TimeControl "180+2"]
[Date "2023.06.20"]
[WhiteClock "0:00:17"]
[BlackClock "0:00:28"]
[Board "130"]

1. d4 {[%clk 0:02:58]}  Nf6 {[%clk 0:02:59]} 2. Nf3 {[%clk 0:02:58]}  g6 {[%clk 0:02:59]} 3. Bg5 {[%clk 0:02:58]}  Bg7 {[%clk 0:02:59]} 4. Nbd2 {[%clk 0:02:58]}  O-O {[%clk 0:02:57]} 5. e3 {[%clk 0:02:59]}  d6 {[%clk 0:02:57]} 6. Bd3 {[%clk 0:02:59]}  b6 {[%clk 0:02:57]} 7. h4 {[%clk 0:02:50]}  Bb7 {[%clk 0:02:55]} 8. c3 {[%clk 0:02:45]}  h5 {[%clk 0:02:55]} 9. Qb3 {[%clk 0:02:36]}  e6 {[%clk 0:02:47]} 10. O-O-O {[%clk 0:02:29]}  c5 {[%clk 0:02:45]} 11. dxc5 {[%clk 0:02:25]}  dxc5 {[%clk 0:02:41]} 12. Ne4 {[%clk 0:02:20]}  Qe7 {[%clk 0:02:40]} 13. Ne5 {[%clk 0:02:04]}  Nc6 {[%clk 0:02:31]} 14. Nxc6 {[%clk 0:01:57]}  Bxc6 {[%clk 0:02:30]} 15. Nxf6+ {[%clk 0:01:54]}  Bxf6 {[%clk 0:02:29]} 16. Bxf6 {[%clk 0:01:53]}  Qxf6 {[%clk 0:02:29]} 17. f3 {[%clk 0:01:53]}  Rfd8 {[%clk 0:02:29]} 18. Bb5 {[%clk 0:01:47]}  Bxb5 {[%clk 0:02:23]} 19. Qxb5 {[%clk 0:01:46]}  Rxd1+ {[%clk 0:02:22]} 20. Kxd1 {[%clk 0:01:37]}  Rd8+ {[%clk 0:02:21]} 21. Ke2 {[%clk 0:01:34]}  Qf5 {[%clk 0:02:20]} 22. Qb3 {[%clk 0:01:21]}  c4 {[%clk 0:02:16]} 23. e4 {[%clk 0:01:04]}  Qf4 {[%clk 0:01:39]} 24. Qc2 {[%clk 0:01:03]}  Qg3 {[%clk 0:01:34]} 25. Kf1 {[%clk 0:00:58]}  Rd3 {[%clk 0:01:30]} 26. Rh3 {[%clk 0:00:53]}  Qd6 {[%clk 0:01:29]} 27. Ke2 {[%clk 0:00:52]}  f5 {[%clk 0:01:21]} 28. exf5 {[%clk 0:00:32]}  Qe5+ {[%clk 0:01:21]} 29. Kf2 {[%clk 0:00:28]}  Qe3+ {[%clk 0:01:16]} 30. Kg3 {[%clk 0:00:27]}  exf5 {[%clk 0:01:17]} 31. Kh2 {[%clk 0:00:25]}  Rd2 {[%clk 0:01:05]} 32. Qa4 {[%clk 0:00:24]}  Qf4+ {[%clk 0:00:59]} 33. Rg3 {[%clk 0:00:23]}  Qxh4+ {[%clk 0:00:59]} 34. Rh3 {[%clk 0:00:23]}  Qf4+ {[%clk 0:00:57]} 35. Rg3 {[%clk 0:00:19]}  h4 {[%clk 0:00:55]} 36. Qe8+ {[%clk 0:00:19]}  Kg7 {[%clk 0:00:55]} 37. Qe7+ {[%clk 0:00:20]}  Kg8 {[%clk 0:00:34]} 38. Qe8+ {[%clk 0:00:19]}  Kg7 {[%clk 0:00:29]} 39. Qe7+ {[%clk 0:00:18]}  Kg8 {[%clk 0:00:28]} 40. Qe8+ {[%clk 0:00:17]} 1/2-1/2


[Site "https://www.chess.com"]